[Event "Titled Tuesday Blitz June 13 Early 2023"]
[White "Georg, Heinz"]
[Black "Kriti Mayur Patel"]
[WhiteFideId "4607295"]
[BlackFideId "35061780"]
[WhiteElo "2289"]
[BlackElo "1306"]
[Result "1-0"]
[Round "9"]
[TimeControl "180+2"]
[Date "2023.06.13"]
[WhiteClock "0:00:19"]
[BlackClock "0:00:00"]
[Board "161"]

1. e4 {[%clk 0:03:00]}  e5 {[%clk 0:02:59]} 2. Nf3 {[%clk 0:03:00]}  Nc6 {[%clk 0:02:59]} 3. Nc3 {[%clk 0:03:00]}  Nf6 {[%clk 0:02:58]} 4. d4 {[%clk 0:03:00]}  exd4 {[%clk 0:02:56]} 5. Nd5 {[%clk 0:03:00]}  Bb4+ {[%clk 0:02:57]} 6. Nxb4 {[%clk 0:02:56]}  Nxb4 {[%clk 0:02:55]} 7. e5 {[%clk 0:02:54]}  Nfd5 {[%clk 0:02:43]} 8. a3 {[%clk 0:02:51]}  Nc6 {[%clk 0:02:40]} 9. c4 {[%clk 0:02:44]}  Nb6 {[%clk 0:02:31]} 10. Bd3 {[%clk 0:02:37]}  d6 {[%clk 0:02:20]} 11. exd6 {[%clk 0:02:33]}  Qxd6 {[%clk 0:02:21]} 12. O-O {[%clk 0:02:31]}  Bg4 {[%clk 0:02:14]} 13. Re1+ {[%clk 0:02:30]}  Kd7 {[%clk 0:02:06]} 14. h3 {[%clk 0:02:13]}  Bh5 {[%clk 0:01:59]} 15. Bf5+ {[%clk 0:02:11]}  Kd8 {[%clk 0:01:56]} 16. c5 {[%clk 0:01:59]}  Qxc5 {[%clk 0:01:44]} 17. Be4 {[%clk 0:01:53]}  Kd7 {[%clk 0:01:21]} 18. Bxc6+ {[%clk 0:01:48]}  Qxc6 {[%clk 0:01:11]} 19. Qxd4+ {[%clk 0:01:45]}  Qd6 {[%clk 0:01:00]} 20. Ne5+ {[%clk 0:01:41]}  Kc8 {[%clk 0:00:56]} 21. Qh4 {[%clk 0:01:34]}  f6 {[%clk 0:00:25]} 22. Qxh5 {[%clk 0:01:32]}  fxe5 {[%clk 0:00:24]} 23. Be3 {[%clk 0:01:25]}  Nd5 {[%clk 0:00:20]} 24. Rad1 {[%clk 0:01:15]}  b6 {[%clk 0:00:20]} 25. Qf3 {[%clk 0:00:56]}  Rd8 {[%clk 0:00:21]} 26. Bg5 {[%clk 0:00:54]}  Rd7 {[%clk 0:00:20]} 27. Rd2 {[%clk 0:00:43]}  c6 {[%clk 0:00:20]} 28. Qe4 {[%clk 0:00:36]}  Kb7 {[%clk 0:00:20]} 29. Qxh7 {[%clk 0:00:34]}  Rf8 {[%clk 0:00:18]} 30. Qe4 {[%clk 0:00:32]}  Qc5 {[%clk 0:00:18]} 31. Be3 {[%clk 0:00:30]}  Qd6 {[%clk 0:00:17]} 32. Red1 {[%clk 0:00:28]}  Qf6 {[%clk 0:00:17]} 33. b4 {[%clk 0:00:26]}  Re7 {[%clk 0:00:16]} 34. b5 {[%clk 0:00:26]}  Nxe3 {[%clk 0:00:16]} 35. bxc6+ {[%clk 0:00:20]}  Qxc6 {[%clk 0:00:15]} 36. Rd7+ {[%clk 0:00:19]}  Rxd7 {[%clk 0:00:15]} 37. Rxd7+ {[%clk 0:00:19]}  Ka6 {[%clk 0:00:00]} 38. Qxc6 {[%clk 0:00:19]} 1-0


[Site "https://www.chess.com"]

[Event "Titled Tuesday Blitz June 13 Early 2023"]
[White "Luxama, Jacques Muller"]
[Black "Torres Dominguez, David"]
[WhiteFideId "11900113"]
[BlackFideId "2220857"]
[WhiteElo "1931"]
[BlackElo "1999"]
[Result "1-0"]
[Round "9"]
[TimeControl "180+2"]
[Date "2023.06.13"]
[WhiteClock "0:00:29"]
[BlackClock "0:00:00"]
[Board "162"]

1. e4 {[%clk 0:02:59]}  e5 {[%clk 0:03:00]} 2. Nf3 {[%clk 0:02:57]}  d6 {[%clk 0:03:01]} 3. d4 {[%clk 0:02:55]}  exd4 {[%clk 0:03:02]} 4. Nxd4 {[%clk 0:02:53]}  Nf6 {[%clk 0:03:02]} 5. Nc3 {[%clk 0:02:53]}  Be7 {[%clk 0:03:03]} 6. g3 {[%clk 0:02:49]}  O-O {[%clk 0:03:04]} 7. Bg2 {[%clk 0:02:46]}  Bg4 {[%clk 0:03:04]} 8. f3 {[%clk 0:02:45]}  Bd7 {[%clk 0:03:02]} 9. O-O {[%clk 0:02:44]}  Nc6 {[%clk 0:03:02]} 10. Nde2 {[%clk 0:02:42]}  Re8 {[%clk 0:02:58]} 11. Be3 {[%clk 0:02:32]}  a6 {[%clk 0:02:56]} 12. b3 {[%clk 0:02:23]}  h6 {[%clk 0:02:51]} 13. Qd2 {[%clk 0:02:21]}  Bf8 {[%clk 0:02:46]} 14. Rad1 {[%clk 0:02:19]}  Ne5 {[%clk 0:02:46]} 15. h3 {[%clk 0:02:14]}  Ng6 {[%clk 0:02:34]} 16. f4 {[%clk 0:02:13]}  c6 {[%clk 0:02:33]} 17. Qe1 {[%clk 0:01:59]}  Qa5 {[%clk 0:02:30]} 18. Qf2 {[%clk 0:01:55]}  Qd8 {[%clk 0:02:26]} 19. Rd2 {[%clk 0:01:48]}  Qc8 {[%clk 0:02:23]} 20. Kh2 {[%clk 0:01:45]}  b5 {[%clk 0:02:16]} 21. a3 {[%clk 0:01:41]}  a5 {[%clk 0:02:15]} 22. f5 {[%clk 0:01:33]}  Ne5 {[%clk 0:02:13]} 23. Kh1 {[%clk 0:01:22]}  b4 {[%clk 0:02:12]} 24. axb4 {[%clk 0:01:19]}  axb4 {[%clk 0:02:13]} 25. Na4 {[%clk 0:01:16]}  c5 {[%clk 0:02:08]} 26. Nb6 {[%clk 0:01:14]}  Qb7 {[%clk 0:02:03]} 27. Nxa8 {[%clk 0:01:12]}  Rxa8 {[%clk 0:02:04]} 28. Qf4 {[%clk 0:00:58]}  Bc6 {[%clk 0:01:58]} 29. Bxc5 {[%clk 0:00:53]}  Nh5 {[%clk 0:01:41]} 30. Qh4 {[%clk 0:00:46]}  Be7 {[%clk 0:01:39]} 31. Qxh5 {[%clk 0:00:44]}  dxc5 {[%clk 0:00:00]} 32. Nf4 {[%clk 0:00:29]} 1-0


[Site "https://www.chess.com"]

[Event "Titled Tuesday Blitz June 13 Early 2023"]
[White "Kiseljova, Marya"]
[Black "Alexanian, Nelli"]
[WhiteFideId "4155009"]
[BlackFideId "4170539"]
[WhiteElo "1831"]
[BlackElo "2024"]
[Result "1-0"]
[Round "9"]
[TimeControl "180+2"]
[Date "2023.06.13"]
[WhiteClock "0:00:20"]
[BlackClock "0:00:00"]
[Board "163"]

1. d4 {[%clk 0:03:00]}  Nf6 {[%clk 0:02:57]} 2. c4 {[%clk 0:03:01]}  c5 {[%clk 0:02:57]} 3. d5 {[%clk 0:03:00]}  b5 {[%clk 0:02:54]} 4. cxb5 {[%clk 0:03:01]}  a6 {[%clk 0:02:53]} 5. b6 {[%clk 0:03:01]}  e6 {[%clk 0:02:52]} 6. Nc3 {[%clk 0:02:55]}  Nxd5 {[%clk 0:02:50]} 7. Nxd5 {[%clk 0:02:54]}  exd5 {[%clk 0:02:49]} 8. Qxd5 {[%clk 0:02:54]}  Nc6 {[%clk 0:02:48]} 9. Nf3 {[%clk 0:02:44]}  Be7 {[%clk 0:02:30]} 10. g3 {[%clk 0:02:23]}  O-O {[%clk 0:02:27]} 11. Bg2 {[%clk 0:02:24]}  Rb8 {[%clk 0:02:16]} 12. O-O {[%clk 0:02:18]}  Rxb6 {[%clk 0:02:14]} 13. Nd2 {[%clk 0:02:02]}  Nb4 {[%clk 0:02:08]} 14. Qh5 {[%clk 0:01:56]}  Rh6 {[%clk 0:02:01]} 15. Qf3 {[%clk 0:01:55]}  d5 {[%clk 0:01:56]} 16. a3 {[%clk 0:01:42]}  Nc2 {[%clk 0:01:54]} 17. Rb1 {[%clk 0:01:37]}  Nd4 {[%clk 0:01:35]} 18. Qxd5 {[%clk 0:01:28]}  Nxe2+ {[%clk 0:01:33]} 19. Kh1 {[%clk 0:01:28]}  Qxd5 {[%clk 0:01:32]} 20. Bxd5 {[%clk 0:01:27]}  Rd8 {[%clk 0:01:31]} 21. Re1 {[%clk 0:01:05]}  Nxc1 {[%clk 0:00:59]} 22. Rxe7 {[%clk 0:01:04]}  Kf8 {[%clk 0:00:54]} 23. Rxf7+ {[%clk 0:00:41]}  Ke8 {[%clk 0:00:53]} 24. Rxc1 {[%clk 0:00:37]}  Rxd5 {[%clk 0:00:51]} 25. Rc7 {[%clk 0:00:36]}  Bf5 {[%clk 0:00:31]} 26. R7xc5 {[%clk 0:00:32]}  Rxd2 {[%clk 0:00:17]} 27. Rxf5 {[%clk 0:00:30]}  Rxb2 {[%clk 0:00:17]} 28. Rc7 {[%clk 0:00:26]}  Kd8 {[%clk 0:00:16]} 29. Rxg7 {[%clk 0:00:26]}  Re6 {[%clk 0:00:15]} 30. Rf8+ {[%clk 0:00:24]}  Re8 {[%clk 0:00:14]} 31. Rff7 {[%clk 0:00:23]}  Re1+ {[%clk 0:00:13]} 32. Kg2 {[%clk 0:00:23]}  Ree2 {[%clk 0:00:12]} 33. Rxh7 {[%clk 0:00:20]}  a5 {[%clk 0:00:10]} 34. Rd7+ {[%clk 0:00:20]}  Kc8 {[%clk 0:00:09]} 35. Rdf7 {[%clk 0:00:20]}  Kd8 {[%clk 0:00:07]} 36. Rh8+ {[%clk 0:00:20]}  Re8 {[%clk 0:00:06]} 37. Rxe8+ {[%clk 0:00:20]}  Kxe8 {[%clk 0:00:06]} 38. Ra7 {[%clk 0:00:20]}  Rb5 {[%clk 0:00:05]} 39. a4 {[%clk 0:00:20]}  Rc5 {[%clk 0:00:00]} 40. h4 {[%clk 0:00:20]} 1-0


[Site "https://www.chess.com"]

[Event "Titled Tuesday Blitz June 13 Early 2023"]
[White "Winkels, Marcel"]
[Black "Porat, Tori"]
[WhiteFideId "1003887"]
[BlackFideId "30982626"]
[WhiteElo "1900"]
[BlackElo "1752"]
[Result "1-0"]
[Round "9"]
[TimeControl "180+2"]
[Date "2023.06.13"]
[WhiteClock "0:00:08"]
[BlackClock "0:00:11"]
[Board "164"]

1. e4 {[%clk 0:03:00]}  c5 {[%clk 0:02:59]} 2. Nf3 {[%clk 0:03:00]}  Nc6 {[%clk 0:02:59]} 3. d4 {[%clk 0:03:00]}  cxd4 {[%clk 0:02:59]} 4. Nxd4 {[%clk 0:03:01]}  e5 {[%clk 0:03:00]} 5. Nb5 {[%clk 0:03:01]}  d6 {[%clk 0:03:00]} 6. c4 {[%clk 0:02:59]}  Nf6 {[%clk 0:02:58]} 7. N1c3 {[%clk 0:02:58]}  a6 {[%clk 0:02:57]} 8. Na3 {[%clk 0:02:57]}  Be7 {[%clk 0:02:56]} 9. Bd3 {[%clk 0:02:56]}  O-O {[%clk 0:02:55]} 10. O-O {[%clk 0:02:56]}  Nb4 {[%clk 0:02:55]} 11. Nc2 {[%clk 0:02:50]}  Nxd3 {[%clk 0:02:50]} 12. Qxd3 {[%clk 0:02:49]}  Be6 {[%clk 0:02:49]} 13. Bg5 {[%clk 0:02:47]}  Rc8 {[%clk 0:02:47]} 14. Ne3 {[%clk 0:02:47]}  Qb6 {[%clk 0:02:40]} 15. Bxf6 {[%clk 0:02:36]}  Bxf6 {[%clk 0:02:37]} 16. Ncd5 {[%clk 0:02:34]}  Bxd5 {[%clk 0:02:36]} 17. Nxd5 {[%clk 0:02:33]}  Qxb2 {[%clk 0:02:33]} 18. Nxf6+ {[%clk 0:02:31]}  gxf6 {[%clk 0:02:33]} 19. Qxd6 {[%clk 0:02:17]}  Rc6 {[%clk 0:02:30]} 20. Qd3 {[%clk 0:02:09]}  Qb4 {[%clk 0:02:22]} 21. Rfc1 {[%clk 0:02:05]}  Rfc8 {[%clk 0:02:18]} 22. Rab1 {[%clk 0:01:49]}  Qe7 {[%clk 0:02:04]} 23. Rb3 {[%clk 0:01:39]}  b5 {[%clk 0:02:01]} 24. Rbc3 {[%clk 0:01:33]}  b4 {[%clk 0:02:00]} 25. R3c2 {[%clk 0:01:31]}  Rc5 {[%clk 0:01:55]} 26. Rd1 {[%clk 0:01:23]}  Qe6 {[%clk 0:01:45]} 27. Rdc1 {[%clk 0:01:21]}  a5 {[%clk 0:01:44]} 28. f3 {[%clk 0:01:19]}  Qb6 {[%clk 0:01:41]} 29. Kh1 {[%clk 0:01:13]}  Qe6 {[%clk 0:01:32]} 30. h3 {[%clk 0:01:09]}  Kg7 {[%clk 0:01:25]} 31. Kh2 {[%clk 0:01:07]}  Qb6 {[%clk 0:01:06]} 32. Qe3 {[%clk 0:01:04]}  Qe6 {[%clk 0:01:02]} 33. Qe2 {[%clk 0:00:56]}  a4 {[%clk 0:01:01]} 34. Qd3 {[%clk 0:00:44]}  Qb6 {[%clk 0:00:58]} 35. Rb1 {[%clk 0:00:42]}  Rb8 {[%clk 0:00:50]} 36. Rcb2 {[%clk 0:00:40]}  Qa5 {[%clk 0:00:46]} 37. Qe2 {[%clk 0:00:33]}  a3 {[%clk 0:00:42]} 38. Rb3 {[%clk 0:00:32]}  Kg8 {[%clk 0:00:37]} 39. f4 {[%clk 0:00:31]}  exf4 {[%clk 0:00:35]} 40. Qg4+ {[%clk 0:00:30]}  Kh8 {[%clk 0:00:36]} 41. Qxf4 {[%clk 0:00:31]}  Rb6 {[%clk 0:00:33]} 42. Rg3 {[%clk 0:00:26]}  Rxc4 {[%clk 0:00:26]} 43. Qg4 {[%clk 0:00:24]}  Qg5 {[%clk 0:00:21]} 44. Qe2 {[%clk 0:00:19]}  Qc5 {[%clk 0:00:19]} 45. Rd1 {[%clk 0:00:15]}  Rb8 {[%clk 0:00:18]} 46. Qg4 {[%clk 0:00:12]}  Qg5 {[%clk 0:00:17]} 47. Qf3 {[%clk 0:00:10]}  Qe5 {[%clk 0:00:15]} 48. Rd5 {[%clk 0:00:09]}  Qxe4 {[%clk 0:00:11]} 49. Qxf6# {[%clk 0:00:08]} 1-0


[Site "https://www.chess.com"]

[Event "Titled Tuesday Blitz June 13 Early 2023"]
[White "Omariev, Maksim"]
[Black "Lakshmi C"]
[WhiteFideId "4193423"]
[BlackFideId "25035347"]
[WhiteElo "2338"]
[BlackElo "1942"]
[Result "1-0"]
[Round "9"]
[TimeControl "180+2"]
[Date "2023.06.13"]
[WhiteClock "0:01:15"]
[BlackClock "0:00:00"]
[Board "167"]

1. g4 {[%clk 0:02:44]}  d5 {[%clk 0:02:53]} 2. Bg2 {[%clk 0:02:40]}  Nc6 {[%clk 0:02:39]} 3. h3 {[%clk 0:02:37]}  Nf6 {[%clk 0:02:33]} 4. d4 {[%clk 0:02:37]}  h5 {[%clk 0:02:17]} 5. g5 {[%clk 0:02:37]}  Ne4 {[%clk 0:02:14]} 6. c4 {[%clk 0:02:36]}  Bf5 {[%clk 0:01:59]} 7. Nc3 {[%clk 0:02:31]}  e6 {[%clk 0:01:31]} 8. cxd5 {[%clk 0:01:58]}  exd5 {[%clk 0:01:23]} 9. Nf3 {[%clk 0:01:55]}  Bb4 {[%clk 0:01:18]} 10. Bd2 {[%clk 0:01:53]}  Nxd2 {[%clk 0:01:00]} 11. Qxd2 {[%clk 0:01:53]}  O-O {[%clk 0:00:47]} 12. a3 {[%clk 0:01:53]}  Ba5 {[%clk 0:00:36]} 13. Qf4 {[%clk 0:01:51]}  Be6 {[%clk 0:00:27]} 14. O-O-O {[%clk 0:01:43]}  Bxc3 {[%clk 0:00:21]} 15. bxc3 {[%clk 0:01:38]}  Qe7 {[%clk 0:00:18]} 16. Kb2 {[%clk 0:01:33]}  Na5 {[%clk 0:00:18]} 17. Nd2 {[%clk 0:01:34]}  b5 {[%clk 0:00:15]} 18. Ra1 {[%clk 0:01:32]}  Rab8 {[%clk 0:00:11]} 19. Kc2 {[%clk 0:01:30]}  Rb6 {[%clk 0:00:08]} 20. Rhc1 {[%clk 0:01:27]}  Rfb8 {[%clk 0:00:07]} 21. Kd1 {[%clk 0:01:27]}  Rc6 {[%clk 0:00:06]} 22. Ke1 {[%clk 0:01:27]}  g6 {[%clk 0:00:06]} 23. Kf1 {[%clk 0:01:26]}  Qd7 {[%clk 0:00:06]} 24. h4 {[%clk 0:01:24]}  Bf5 {[%clk 0:00:05]} 25. f3 {[%clk 0:01:19]}  Nc4 {[%clk 0:00:03]} 26. e4 {[%clk 0:01:17]}  Be6 {[%clk 0:00:03]} 27. Nb3 {[%clk 0:01:16]}  Qe7 {[%clk 0:00:01]} 28. Nc5 {[%clk 0:01:16]}  Rcb6 {[%clk 0:00:00]} 29. e5 {[%clk 0:01:15]} 1-0


[Site "https://www.chess.com"]

[Event "Titled Tuesday Blitz June 13 Early 2023"]
[White "Nakamura, Hikaru"]
[Black "Lazavik, Denis"]
[WhiteFideId "2016192"]
[BlackFideId "13515110"]
[WhiteElo "2874"]
[BlackElo "2560"]
[Result "1/2-1/2"]
[Round "10"]
[TimeControl "180+2"]
[Date "2023.06.13"]
[WhiteClock "0:00:14"]
[BlackClock "0:00:06"]
[Board "3"]

1. e4 {[%clk 0:03:00]}  e5 {[%clk 0:03:00]} 2. Nc3 {[%clk 0:03:00]}  Nf6 {[%clk 0:03:00]} 3. Bc4 {[%clk 0:02:55]}  Bc5 {[%clk 0:03:00]} 4. d3 {[%clk 0:02:55]}  d6 {[%clk 0:03:00]} 5. h3 {[%clk 0:02:51]}  Nc6 {[%clk 0:02:57]} 6. Nge2 {[%clk 0:02:45]}  Be6 {[%clk 0:02:55]} 7. Bb3 {[%clk 0:02:41]}  h6 {[%clk 0:02:54]} 8. O-O {[%clk 0:02:36]}  O-O {[%clk 0:02:53]} 9. Na4 {[%clk 0:02:36]}  Bb6 {[%clk 0:02:52]} 10. c4 {[%clk 0:02:31]}  Nd7 {[%clk 0:02:47]} 11. Kh2 {[%clk 0:02:28]}  Nc5 {[%clk 0:02:37]} 12. Nxb6 {[%clk 0:01:46]}  axb6 {[%clk 0:02:36]} 13. Be3 {[%clk 0:01:47]}  f5 {[%clk 0:02:33]} 14. f3 {[%clk 0:01:47]}  fxe4 {[%clk 0:02:14]} 15. dxe4 {[%clk 0:01:48]}  Qf6 {[%clk 0:02:14]} 16. Qd2 {[%clk 0:01:35]}  Qf7 {[%clk 0:02:07]} 17. Rac1 {[%clk 0:01:35]}  Ne7 {[%clk 0:01:43]} 18. Nc3 {[%clk 0:01:28]}  Ng6 {[%clk 0:01:40]} 19. Nd5 {[%clk 0:01:27]}  Nf4 {[%clk 0:01:35]} 20. Bxf4 {[%clk 0:01:17]}  exf4 {[%clk 0:01:34]} 21. Rfe1 {[%clk 0:01:18]}  Rac8 {[%clk 0:01:06]} 22. e5 {[%clk 0:01:16]}  Rcd8 {[%clk 0:01:05]} 23. Bc2 {[%clk 0:01:05]}  dxe5 {[%clk 0:00:50]} 24. Qc3 {[%clk 0:01:05]}  e4 {[%clk 0:00:34]} 25. Bxe4 {[%clk 0:00:43]}  Nxe4 {[%clk 0:00:31]} 26. Rxe4 {[%clk 0:00:44]}  Bxd5 {[%clk 0:00:31]} 27. cxd5 {[%clk 0:00:45]}  Rxd5 {[%clk 0:00:31]} 28. Qxc7 {[%clk 0:00:45]}  Qxc7 {[%clk 0:00:28]} 29. Rxc7 {[%clk 0:00:46]}  Rf6 {[%clk 0:00:29]} 30. Re2 {[%clk 0:00:41]}  Rf7 {[%clk 0:00:29]} 31. Re8+ {[%clk 0:00:41]}  Rf8 {[%clk 0:00:27]} 32. Ree7 {[%clk 0:00:42]}  Rg5 {[%clk 0:00:25]} 33. Rxb7 {[%clk 0:00:40]}  Rd8 {[%clk 0:00:23]} 34. Re2 {[%clk 0:00:27]}  Rd6 {[%clk 0:00:23]} 35. Rc7 {[%clk 0:00:23]}  Kh7 {[%clk 0:00:15]} 36. a4 {[%clk 0:00:23]}  Rd4 {[%clk 0:00:14]} 37. b3 {[%clk 0:00:23]}  Rd3 {[%clk 0:00:14]} 38. Rb2 {[%clk 0:00:22]}  Rd1 {[%clk 0:00:12]} 39. Rc4 {[%clk 0:00:22]}  Rf5 {[%clk 0:00:12]} 40. Rb4 {[%clk 0:00:22]}  Rf6 {[%clk 0:00:12]} 41. h4 {[%clk 0:00:21]}  g5 {[%clk 0:00:11]} 42. Rc2 {[%clk 0:00:20]}  Re6 {[%clk 0:00:10]} 43. h5 {[%clk 0:00:16]}  Ree1 {[%clk 0:00:06]} 44. Rc7+ {[%clk 0:00:15]}  Kg8 {[%clk 0:00:06]} 45. Kh3 {[%clk 0:00:15]}  Rh1+ {[%clk 0:00:07]} 46. Kg4 {[%clk 0:00:16]}  Rd5 {[%clk 0:00:07]} 47. g3 {[%clk 0:00:16]}  Rg1 {[%clk 0:00:07]} 48. Kh3 {[%clk 0:00:13]}  Rxg3+ {[%clk 0:00:07]} 49. Kh2 {[%clk 0:00:13]}  Rd2+ {[%clk 0:00:07]} 50. Kh1 {[%clk 0:00:14]}  Rxf3 {[%clk 0:00:08]} 51. Kg1 {[%clk 0:00:14]}  Re3 {[%clk 0:00:08]} 52. Kf1 {[%clk 0:00:15]}  Rde2 {[%clk 0:00:04]} 53. Rxb6 {[%clk 0:00:12]}  Re1+ {[%clk 0:00:05]} 54. Kf2 {[%clk 0:00:13]}  R1e2+ {[%clk 0:00:05]} 55. Kf1 {[%clk 0:00:13]}  Re1+ {[%clk 0:00:06]} 56. Kf2 {[%clk 0:00:14]}  R1e2+ {[%clk 0:00:06]} 57. Kf1 {[%clk 0:00:14]} 1/2-1/2


[Site "https://www.chess.com"]

[Event "Titled Tuesday Blitz June 13 Early 2023"]
[White "Deac, Bogdan-Daniel"]
[Black "Paravyan, David"]
[WhiteFideId "1226380"]
[BlackFideId "4194985"]
[WhiteElo "2644"]
[BlackElo "2563"]
[Result "0-1"]
[Round "10"]
[TimeControl "180+2"]
[Date "2023.06.13"]
[WhiteClock "0:00:00"]
[BlackClock "0:00:03"]
[Board "4"]

1. d4 {[%clk 0:02:55]}  Nf6 {[%clk 0:02:59]} 2. Nf3 {[%clk 0:02:55]}  g6 {[%clk 0:03:00]} 3. e3 {[%clk 0:02:55]}  Bg7 {[%clk 0:03:00]} 4. Be2 {[%clk 0:02:56]}  O-O {[%clk 0:03:00]} 5. O-O {[%clk 0:02:56]}  d5 {[%clk 0:03:01]} 6. Nbd2 {[%clk 0:02:55]}  b6 {[%clk 0:02:46]} 7. b3 {[%clk 0:02:54]}  c5 {[%clk 0:02:46]} 8. Bb2 {[%clk 0:02:54]}  cxd4 {[%clk 0:02:46]} 9. Nxd4 {[%clk 0:02:47]}  Bb7 {[%clk 0:02:42]} 10. c4 {[%clk 0:02:45]}  Nc6 {[%clk 0:02:24]} 11. Rc1 {[%clk 0:02:22]}  Rc8 {[%clk 0:02:14]} 12. N4f3 {[%clk 0:02:10]}  Qd7 {[%clk 0:01:44]} 13. cxd5 {[%clk 0:01:39]}  Nxd5 {[%clk 0:01:38]} 14. Bxg7 {[%clk 0:01:39]}  Kxg7 {[%clk 0:01:39]} 15. Qc2 {[%clk 0:01:23]}  Qe6 {[%clk 0:01:17]} 16. Bc4 {[%clk 0:01:09]}  Na5 {[%clk 0:00:46]} 17. Qb2+ {[%clk 0:00:29]}  Qf6 {[%clk 0:00:44]} 18. Qxf6+ {[%clk 0:00:25]}  exf6 {[%clk 0:00:27]} 19. Bxd5 {[%clk 0:00:24]}  Bxd5 {[%clk 0:00:27]} 20. Nd4 {[%clk 0:00:24]}  Nc6 {[%clk 0:00:24]} 21. f3 {[%clk 0:00:12]}  Nxd4 {[%clk 0:00:18]} 22. exd4 {[%clk 0:00:12]}  Rcd8 {[%clk 0:00:13]} 23. Rfd1 {[%clk 0:00:08]}  Rfe8 {[%clk 0:00:13]} 24. Kf2 {[%clk 0:00:08]}  Re7 {[%clk 0:00:12]} 25. Nf1 {[%clk 0:00:08]}  a5 {[%clk 0:00:08]} 26. Rd2 {[%clk 0:00:07]}  a4 {[%clk 0:00:07]} 27. bxa4 {[%clk 0:00:05]}  Ra7 {[%clk 0:00:05]} 28. Rb1 {[%clk 0:00:05]}  Rxa4 {[%clk 0:00:05]} 29. Rxb6 {[%clk 0:00:05]}  Bxa2 {[%clk 0:00:04]} 30. Rbb2 {[%clk 0:00:02]}  Be6 {[%clk 0:00:03]} 31. Ke3 {[%clk 0:00:03]}  f5 {[%clk 0:00:03]} 32. Ng3 {[%clk 0:00:02]}  f4+ {[%clk 0:00:03]} 33. Kxf4 {[%clk 0:00:03]}  Rdxd4+ {[%clk 0:00:03]} 34. Rxd4 {[%clk 0:00:03]}  Rxd4+ {[%clk 0:00:04]} 35. Ke3 {[%clk 0:00:04]}  Ra4 {[%clk 0:00:05]} 36. Ne4 {[%clk 0:00:04]}  h6 {[%clk 0:00:05]} 37. Kf2 {[%clk 0:00:04]}  Ra3 {[%clk 0:00:04]} 38. h4 {[%clk 0:00:03]}  Bf5 {[%clk 0:00:04]} 39. Nd6 {[%clk 0:00:03]}  Be6 {[%clk 0:00:04]} 40. Rb8 {[%clk 0:00:04]}  Ra2+ {[%clk 0:00:04]} 41. Kg3 {[%clk 0:00:04]}  Kf6 {[%clk 0:00:02]} 42. Ne4+ {[%clk 0:00:04]}  Kg7 {[%clk 0:00:03]} 43. Rd8 {[%clk 0:00:03]}  Ra7 {[%clk 0:00:03]} 44. Kf4 {[%clk 0:00:03]}  Rd7 {[%clk 0:00:03]} 45. Rb8 {[%clk 0:00:02]}  Rd5 {[%clk 0:00:03]} 46. Rb2 {[%clk 0:00:02]}  Rf5+ {[%clk 0:00:02]} 47. Kg3 {[%clk 0:00:02]}  Ra5 {[%clk 0:00:03]} 48. Kf4 {[%clk 0:00:02]}  Rf5+ {[%clk 0:00:03]} 49. Ke3 {[%clk 0:00:01]}  Ra5 {[%clk 0:00:04]} 50. g4 {[%clk 0:00:01]}  Bd5 {[%clk 0:00:04]} 51. Kf4 {[%clk 0:00:01]}  Bxe4 {[%clk 0:00:04]} 52. Kxe4 {[%clk 0:00:01]}  Ra4+ {[%clk 0:00:04]} 53. Ke3 {[%clk 0:00:01]}  h5 {[%clk 0:00:05]} 54. Rg2 {[%clk 0:00:00]}  hxg4 {[%clk 0:00:03]} 0-1


[Site "https://www.chess.com"]

[Event "Titled Tuesday Blitz June 13 Early 2023"]
[White "Bok, Benjamin"]
[Black "Nihal Sarin"]
[WhiteFideId "1017063"]
[BlackFideId "25092340"]
[WhiteElo "2657"]
[BlackElo "2689"]
[Result "1/2-1/2"]
[Round "10"]
[TimeControl "180+2"]
[Date "2023.06.13"]
[WhiteClock "0:00:12"]
[BlackClock "0:00:11"]
[Board "6"]

1. d4 {[%clk 0:03:00]}  d5 {[%clk 0:02:53]} 2. c4 {[%clk 0:03:00]}  e6 {[%clk 0:02:49]} 3. Nc3 {[%clk 0:03:00]}  h6 {[%clk 0:02:48]} 4. Nf3 {[%clk 0:02:59]}  Nf6 {[%clk 0:02:49]} 5. Bf4 {[%clk 0:02:59]}  Bd6 {[%clk 0:02:49]} 6. Bxd6 {[%clk 0:02:59]}  Qxd6 {[%clk 0:02:50]} 7. e3 {[%clk 0:03:00]}  O-O {[%clk 0:02:50]} 8. Rc1 {[%clk 0:03:00]}  Qe7 {[%clk 0:02:47]} 9. Qc2 {[%clk 0:02:58]}  c6 {[%clk 0:02:42]} 10. a3 {[%clk 0:02:52]}  Nbd7 {[%clk 0:02:42]} 11. cxd5 {[%clk 0:02:49]}  exd5 {[%clk 0:02:42]} 12. Bd3 {[%clk 0:02:49]}  Re8 {[%clk 0:02:43]} 13. Nd2 {[%clk 0:02:43]}  c5 {[%clk 0:02:37]} 14. O-O {[%clk 0:02:15]}  c4 {[%clk 0:02:37]} 15. Bf5 {[%clk 0:01:49]}  Nb6 {[%clk 0:02:37]} 16. Rfe1 {[%clk 0:01:49]}  Bxf5 {[%clk 0:02:34]} 17. Qxf5 {[%clk 0:01:50]}  Rad8 {[%clk 0:02:32]} 18. h3 {[%clk 0:01:47]}  a6 {[%clk 0:02:30]} 19. e4 {[%clk 0:01:44]}  dxe4 {[%clk 0:02:26]} 20. Ndxe4 {[%clk 0:01:45]}  Nfd5 {[%clk 0:02:14]} 21. Nxd5 {[%clk 0:01:34]}  Nxd5 {[%clk 0:02:07]} 22. Rxc4 {[%clk 0:01:21]}  g6 {[%clk 0:02:07]} 23. Qf3 {[%clk 0:01:17]}  Kg7 {[%clk 0:02:03]} 24. Rcc1 {[%clk 0:01:13]}  b6 {[%clk 0:01:49]} 25. g3 {[%clk 0:01:08]}  Qd7 {[%clk 0:01:27]} 26. Kg2 {[%clk 0:01:06]}  Re6 {[%clk 0:01:28]} 27. Nc3 {[%clk 0:01:03]}  Rd6 {[%clk 0:01:27]} 28. Nxd5 {[%clk 0:00:59]}  Rxd5 {[%clk 0:01:28]} 29. Re4 {[%clk 0:00:56]}  Rxd4 {[%clk 0:01:22]} 30. Qc3 {[%clk 0:00:53]}  Qd5 {[%clk 0:00:25]} 31. Qxd4+ {[%clk 0:00:53]}  Qxd4 {[%clk 0:00:26]} 32. Rxd4 {[%clk 0:00:54]}  Rxd4 {[%clk 0:00:26]} 33. Rc6 {[%clk 0:00:55]}  b5 {[%clk 0:00:27]} 34. Rxa6 {[%clk 0:00:55]}  Rd3 {[%clk 0:00:28]} 35. b4 {[%clk 0:00:51]}  h5 {[%clk 0:00:28]} 36. h4 {[%clk 0:00:50]}  Rb3 {[%clk 0:00:27]} 37. Ra5 {[%clk 0:00:49]}  Kf6 {[%clk 0:00:25]} 38. Rxb5 {[%clk 0:00:47]}  Rxa3 {[%clk 0:00:25]} 39. Rb7 {[%clk 0:00:48]}  Rb3 {[%clk 0:00:23]} 40. b5 {[%clk 0:00:48]}  Ke6 {[%clk 0:00:24]} 41. b6 {[%clk 0:00:49]}  f6 {[%clk 0:00:25]} 42. Rb8 {[%clk 0:00:48]}  Kf7 {[%clk 0:00:14]} 43. Kf1 {[%clk 0:00:45]}  Rb2 {[%clk 0:00:14]} 44. Ke1 {[%clk 0:00:43]}  g5 {[%clk 0:00:15]} 45. hxg5 {[%clk 0:00:16]}  fxg5 {[%clk 0:00:16]} 46. Kf1 {[%clk 0:00:17]}  Kg7 {[%clk 0:00:15]} 47. f4 {[%clk 0:00:12]}  gxf4 {[%clk 0:00:09]} 48. gxf4 {[%clk 0:00:13]}  Rb4 {[%clk 0:00:10]} 49. Kg2 {[%clk 0:00:11]}  Rxf4 {[%clk 0:00:09]} 50. Rc8 {[%clk 0:00:10]}  Rb4 {[%clk 0:00:08]} 51. Rc6 {[%clk 0:00:10]}  Kf7 {[%clk 0:00:07]} 52. Kh3 {[%clk 0:00:10]}  Ke7 {[%clk 0:00:07]} 53. Rh6 {[%clk 0:00:10]}  Kd7 {[%clk 0:00:08]} 54. b7 {[%clk 0:00:10]}  Rxb7 {[%clk 0:00:08]} 55. Rh7+ {[%clk 0:00:10]}  Kc8 {[%clk 0:00:09]} 56. Rxb7 {[%clk 0:00:11]}  Kxb7 {[%clk 0:00:10]} 57. Kh4 {[%clk 0:00:11]}  Kb6 {[%clk 0:00:11]} 58. Kxh5 {[%clk 0:00:12]} 1/2-1/2


[Site "https://www.chess.com"]